[Event "MČR v rapid šachu družstev 2019"]
[Site "Teplice, Czech Republic"]
[Date "2019.09.15"]
[Round "5.3"]
[White "Vrbata, Zbynek"]
[Black "Polak, Tomas"]
[Result "0-1"]
[TimeControl "15 min. + 5s"]
[WhiteElo "2376"]
[BlackElo "2515"]

1. d4 {[%clk 00:15:08]} {[%emt 00:00:01]} Nf6 {[%clk 00:15:08]} {[%emt
00:00:03]} 2. c4 {[%clk 00:15:10]} {[%emt 00:00:03]} e6 {[%clk 00:15:06]}
{[%emt 00:00:07]} 3. Nf3 {[%clk 00:15:06]} {[%emt 00:00:10]} b6 {[%clk
00:15:10]} 4. g3 {[%clk 00:15:08]} {[%emt 00:00:03]} Ba6 {[%clk 00:15:14]}
{[%emt 00:00:01]} 5. Qa4 {[%clk 00:14:38]} {[%emt 00:00:36]} Bb7 {[%clk
00:15:10]} {[%emt 00:00:07]} 6. Bg2 {[%clk 00:14:41]} {[%emt 00:00:01]} c5
{[%clk 00:15:15]} 7. dxc5 {[%clk 00:13:25]} {[%emt 00:01:22]} Bxc5 {[%clk
00:15:16]} {[%emt 00:00:04]} 8. O-O {[%clk 00:13:27]} {[%emt 00:00:03]} O-O
{[%clk 00:15:19]} {[%emt 00:00:03]} 9. Nc3 {[%clk 00:13:20]} {[%emt 00:00:11]}
Be7 {[%clk 00:15:21]} {[%emt 00:00:03]} 10. Rd1 {[%clk 00:13:05]} {[%emt
00:00:20]} Na6 {[%clk 00:15:20]} {[%emt 00:00:06]} 11. Ne5 {[%clk 00:12:04]}
{[%emt 00:01:05]} Nc5 {[%clk 00:15:12]} {[%emt 00:00:14]} 12. Qc2 {[%clk
00:12:05]} {[%emt 00:00:03]} Bxg2 {[%clk 00:15:06]} {[%emt 00:00:12]} 13. Kxg2
{[%clk 00:12:08]} {[%emt 00:00:01]} Qc7 {[%clk 00:14:55]} {[%emt 00:00:16]} 14.
Nf3 {[%clk 00:11:25]} {[%emt 00:00:48]} Rfd8 {[%clk 00:13:27]} {[%emt
00:01:33]} 15. Bf4 {[%clk 00:10:40]} {[%emt 00:00:50]} Qb7 {[%clk 00:13:31]}
{[%emt 00:00:02]} 16. Kg1 {[%clk 00:09:25]} {[%emt 00:01:19]} Rac8 {[%clk
00:13:05]} {[%emt 00:00:31]} 17. Rac1 {[%clk 00:09:04]} {[%emt 00:00:26]} a6
{[%clk 00:12:25]} {[%emt 00:00:45]} 18. b4 {[%clk 00:07:47]} {[%emt 00:01:22]}
Nce4 {[%clk 00:12:17]} {[%emt 00:00:13]} 19. Nxe4 {[%clk 00:07:43]} {[%emt
00:00:09]} Qxe4 {[%clk 00:10:33]} {[%emt 00:01:49]} 20. Qb3 {[%clk 00:07:08]}
{[%emt 00:00:40]} d5 {[%clk 00:09:46]} {[%emt 00:00:52]} 21. cxd5 {[%clk
00:05:52]} {[%emt 00:01:21]} Nxd5 {[%clk 00:09:40]} {[%emt 00:00:10]} 22. Rxc8
{[%clk 00:04:50]} {[%emt 00:01:07]} Rxc8 {[%clk 00:09:42]} {[%emt 00:00:03]} 23.
Bd2 {[%clk 00:04:02]} {[%emt 00:00:53]} Qxe2 {[%clk 00:09:26]} {[%emt
00:00:21]} 24. a3 {[%clk 00:03:54]} {[%emt 00:00:14]} h6 {[%clk 00:07:33]}
{[%emt 00:01:57]} 25. Nd4 {[%clk 00:03:18]} {[%emt 00:00:40]} Qe4 {[%clk
00:07:24]} {[%emt 00:00:15]} 26. Be1 {[%clk 00:03:00]} {[%emt 00:00:22]} Bf6
{[%clk 00:07:22]} {[%emt 00:00:07]} 27. Qd3 {[%clk 00:02:33]} {[%emt 00:00:32]}
Qxd3 {[%clk 00:06:34]} {[%emt 00:00:53]} 28. Rxd3 {[%clk 00:02:37]} Rc1 {[%clk
00:06:34]} {[%emt 00:00:06]} 29. Kf1 {[%clk 00:02:36]} {[%emt 00:00:05]} Ra1
{[%clk 00:06:15]} {[%emt 00:00:25]} 30. Nc2 {[%clk 00:02:20]} {[%emt 00:00:22]}
Rc1 {[%clk 00:05:38]} {[%emt 00:00:41]} 31. Ne3 {[%clk 00:02:09]} {[%emt
00:00:16]} Nxe3+ {[%clk 00:03:52]} {[%emt 00:01:52]} 32. Rxe3 {[%clk 00:02:12]}
{[%emt 00:00:02]} Bd4 {[%clk 00:03:51]} {[%emt 00:00:05]} 33. Rd3 {[%clk
00:02:06]} {[%emt 00:00:11]} e5 {[%clk 00:03:54]} {[%emt 00:00:03]} 34. Ke2
{[%clk 00:02:01]} {[%emt 00:00:09]} Kf8 {[%clk 00:03:37]} {[%emt 00:00:22]} 35.
Bd2 {[%clk 00:01:33]} {[%emt 00:00:32]} Rc2 {[%clk 00:03:41]} {[%emt 00:00:02]}
36. f4 {[%clk 00:01:25]} {[%emt 00:00:14]} f6 {[%clk 00:03:38]} {[%emt
00:00:08]} 37. Kf3 {[%clk 00:01:25]} {[%emt 00:00:05]} Ke7 {[%clk 00:03:27]}
{[%emt 00:00:16]} 38. Ke4 {[%clk 00:01:14]} {[%emt 00:00:15]} Ke6 {[%clk
00:03:24]} {[%emt 00:00:08]} 39. f5+ {[%clk 00:01:18]} {[%emt 00:00:02]} Kd6
{[%clk 00:03:27]} {[%emt 00:00:01]} 40. g4 {[%clk 00:01:21]} {[%emt 00:00:02]}
Kc6 {[%clk 00:03:19]} {[%emt 00:00:14]} 41. h4 {[%clk 00:01:22]} {[%emt
00:00:03]} Rc4 {[%clk 00:03:14]} {[%emt 00:00:10]} 42. Kf3 {[%clk 00:01:23]}
{[%emt 00:00:04]} Kd5 {[%clk 00:03:06]} {[%emt 00:00:13]} 43. Ke2 {[%clk
00:01:19]} {[%emt 00:00:09]} Ke4 {[%clk 00:03:05]} {[%emt 00:00:06]} 44. Rg3
{[%clk 00:01:12]} {[%emt 00:00:11]} Rc2 {[%clk 00:03:02]} {[%emt 00:00:08]} 45.
g5 {[%clk 00:01:10]} {[%emt 00:00:08]} hxg5 {[%clk 00:03:04]} {[%emt 00:00:03]}
46. hxg5 {[%clk 00:01:14]} {[%emt 00:00:01]} Ra2 {[%clk 00:02:52]} {[%emt
00:00:17]} 47. Kd1 {[%clk 00:00:34]} {[%emt 00:00:45]} Kxf5 {[%clk 00:02:49]}
{[%emt 00:00:07]} 48. g6 {[%emt 00:00:05]} e4 {[%clk 00:02:40]} {[%emt
00:00:13]} 49. Bh6 {[%clk 00:00:28]} {[%emt 00:00:12]} Be5 {[%clk 00:02:38]}
{[%emt 00:00:07]} 0-1

[Event "MČR v rapid šachu družstev 2019"]
[Site "Teplice, Czech Republic"]
[Date "2019.09.15"]
[Round "5.4"]
[White "Vymazal, Bronislav"]
[Black "Kuba, Jindrich"]
[Result "1-0"]
[TimeControl "15 min. + 5s"]
[WhiteElo "2347"]
[BlackElo "2229"]

1. e4 {[%clk 00:15:09]} c5 {[%clk 00:15:09]} 2. Nf3 {[%clk 00:15:12]} {[%emt
00:00:02]} e6 {[%clk 00:15:12]} {[%emt 00:00:01]} 3. d4 {[%clk 00:15:16]}
{[%emt 00:00:01]} cxd4 {[%clk 00:15:16]} {[%emt 00:00:02]} 4. Nxd4 {[%clk
00:15:19]} {[%emt 00:00:01]} a6 {[%clk 00:15:14]} {[%emt 00:00:07]} 5. Bd3
{[%clk 00:15:22]} {[%emt 00:00:02]} Qc7 {[%clk 00:15:11]} {[%emt 00:00:09]} 6.
Qe2 {[%clk 00:15:25]} {[%emt 00:00:02]} d6 {[%clk 00:15:11]} {[%emt 00:00:06]}
7. O-O {[%clk 00:15:26]} {[%emt 00:00:01]} Nf6 {[%clk 00:15:15]} {[%emt
00:00:01]} 8. Bg5 {[%clk 00:15:30]} {[%emt 00:00:02]} Be7 {[%clk 00:15:18]}
{[%emt 00:00:02]} 9. Nd2 {[%clk 00:15:31]} {[%emt 00:00:03]} Nc6 {[%clk
00:15:16]} {[%emt 00:00:07]} 10. c3 {[%clk 00:15:34]} {[%emt 00:00:03]} O-O
{[%clk 00:15:15]} {[%emt 00:00:05]} 11. f4 {[%clk 00:15:25]} {[%emt 00:00:16]}
Re8 {[%clk 00:15:11]} {[%emt 00:00:07]} 12. Rae1 {[%clk 00:15:23]} {[%emt
00:00:07]} e5 {[%clk 00:14:42]} {[%emt 00:00:34]} 13. fxe5 {[%clk 00:14:42]}
{[%emt 00:00:46]} Nxe5 {[%clk 00:14:32]} {[%emt 00:00:15]} 14. Kh1 {[%clk
00:10:54]} {[%emt 00:03:53]} Bg4 {[%clk 00:14:31]} {[%emt 00:00:05]} 15. Qe3
{[%clk 00:10:52]} {[%emt 00:00:07]} Nxd3 {[%clk 00:13:04]} {[%emt 00:01:33]} 16.
Qxd3 {[%clk 00:10:55]} {[%emt 00:00:02]} Nd7 {[%clk 00:12:32]} {[%emt
00:00:37]} 17. Bxe7 {[%clk 00:10:06]} {[%emt 00:00:53]} Rxe7 {[%clk 00:12:34]}
{[%emt 00:00:03]} 18. Qg3 {[%clk 00:09:31]} {[%emt 00:00:40]} Ne5 {[%clk
00:12:14]} {[%emt 00:00:26]} 19. N2f3 {[%clk 00:09:16]} {[%emt 00:00:20]} Nxf3
{[%clk 00:12:09]} {[%emt 00:00:09]} 20. gxf3 {[%clk 00:09:04]} {[%emt
00:00:17]} Bd7 {[%clk 00:11:39]} {[%emt 00:00:35]} 21. Rg1 {[%clk 00:08:50]}
{[%emt 00:00:19]} f6 {[%clk 00:11:25]} {[%emt 00:00:19]} 22. Rd1 {[%clk
00:08:30]} {[%emt 00:00:25]} Rd8 {[%clk 00:11:21]} {[%emt 00:00:09]} 23. Rd2
{[%clk 00:08:20]} {[%emt 00:00:15]} Bc8 {[%clk 00:11:11]} {[%emt 00:00:16]} 24.
Ne2 {[%clk 00:07:45]} {[%emt 00:00:40]} f5 {[%clk 00:10:19]} {[%emt 00:00:57]}
25. Nf4 {[%clk 00:07:47]} {[%emt 00:00:03]} Qc5 {[%clk 00:09:47]} {[%emt
00:00:36]} 26. Rd5 {[%clk 00:06:52]} {[%emt 00:01:00]} Qc7 {[%clk 00:08:36]}
{[%emt 00:01:16]} 27. exf5 {[%clk 00:06:55]} {[%emt 00:00:02]} Rf8 {[%clk
00:07:59]} {[%emt 00:00:42]} 28. Qg5 {[%clk 00:03:54]} {[%emt 00:03:06]} Re5
{[%clk 00:06:32]} {[%emt 00:01:27]} 29. Rxe5 {[%clk 00:03:25]} {[%emt
00:00:34]} dxe5 {[%clk 00:06:40]} {[%emt 00:00:02]} 30. Ne6 {[%clk 00:03:24]}
{[%emt 00:00:06]} Bxe6 {[%clk 00:05:47]} {[%emt 00:00:58]} 31. fxe6 {[%clk
00:03:28]} {[%emt 00:00:01]} Re8 {[%clk 00:05:51]} 32. Qf6 {[%clk 00:02:09]}
{[%emt 00:01:23]} Rf8 {[%clk 00:05:09]} {[%emt 00:00:48]} 33. Qg5 {[%clk
00:01:58]} {[%emt 00:00:17]} Re8 {[%clk 00:04:54]} {[%emt 00:00:19]} 34. Qf5
{[%clk 00:01:42]} {[%emt 00:00:21]} Rf8 {[%clk 00:03:57]} {[%emt 00:01:03]} 35.
Qg4 {[%clk 00:01:45]} {[%emt 00:00:01]} Re8 {[%clk 00:02:58]} {[%emt 00:01:03]}
36. Rd1 {[%clk 00:01:39]} {[%emt 00:00:11]} Rd8 {[%clk 00:02:18]} {[%emt
00:00:45]} 37. Rd7 {[%clk 00:00:40]} {[%emt 00:01:04]} Rxd7 {[%clk 00:02:23]}
{[%emt 00:00:01]} 38. exd7 {[%clk 00:00:45]} {[%emt 00:00:01]} Kf7 {[%clk
00:02:25]} {[%emt 00:00:01]} 39. Qf5+ {[%clk 00:00:48]} {[%emt 00:00:02]} Ke7
{[%clk 00:02:26]} {[%emt 00:00:03]} 40. Qxh7 {[%clk 00:00:52]} {[%emt
00:00:02]} Qd6 {[%clk 00:01:29]} {[%emt 00:01:02]} 41. Qxg7+ {[%clk 00:00:55]}
{[%emt 00:00:03]} Kd8 {[%clk 00:01:33]} 42. Qf7 {[%clk 00:00:25]} {[%emt
00:00:36]} Qd1+ {[%clk 00:01:13]} {[%emt 00:00:25]} 43. Kg2 {[%clk 00:00:29]}
{[%emt 00:00:01]} Qd2+ {[%clk 00:01:17]} 44. Kh3 {[%clk 00:00:33]} {[%emt
00:00:01]} Qh6+ {[%clk 00:01:20]} {[%emt 00:00:01]} 45. Kg4 {[%clk 00:00:35]}
{[%emt 00:00:03]} Kc7 {[%clk 00:00:39]} {[%emt 00:00:45]} 46. Qe8 {[%clk
00:00:17]} {[%emt 00:00:24]} Qf4+ {[%clk 00:00:28]} {[%emt 00:00:16]} 47. Kh5
{[%clk 00:00:20]} {[%emt 00:00:03]} Qxf3+ {[%clk 00:00:28]} {[%emt 00:00:05]}
48. Kg6 {[%clk 00:00:23]} {[%emt 00:00:02]} Qg4+ {[%clk 00:00:13]} {[%emt
00:00:20]} 49. Kf6 {[%clk 00:00:19]} {[%emt 00:00:09]} Qf4+ {[%clk 00:00:00]}
{[%emt 00:00:14]} 50. Ke6 {[%clk 00:00:19]} {[%emt 00:00:03]} Qh6+ {[%clk
00:00:00]} {[%emt 00:00:06]} 1-0

[Event "MČR v rapid šachu družstev 2019"]
[Site "Teplice, Czech Republic"]
[Date "2019.09.15"]
[Round "5.5"]
[White "Vykouk, Jan"]
[Black "Liska, Jiri"]
[Result "1-0"]
[TimeControl "15 min. + 5s"]
[WhiteElo "2428"]
[BlackElo "2213"]

1. Nf3 {[%clk 00:15:07]} {[%emt 00:00:03]} Nf6 {[%clk 00:15:07]} {[%emt
00:00:03]} 2. b3 {[%clk 00:15:10]} {[%emt 00:00:04]} c5 {[%clk 00:14:39]}
{[%emt 00:00:31]} 3. Bb2 {[%clk 00:15:13]} {[%emt 00:00:02]} Nc6 {[%clk
00:14:34]} {[%emt 00:00:10]} 4. g3 {[%clk 00:15:13]} {[%emt 00:00:05]} g6
{[%clk 00:14:12]} {[%emt 00:00:26]} 5. Bg2 {[%clk 00:14:43]} {[%emt 00:00:35]}
Bg7 {[%clk 00:14:16]} {[%emt 00:00:02]} 6. c4 {[%clk 00:14:38]} {[%emt
00:00:10]} O-O {[%clk 00:14:06]} {[%emt 00:00:15]} 7. O-O {[%clk 00:14:40]}
{[%emt 00:00:04]} d6 {[%clk 00:13:26]} {[%emt 00:00:44]} 8. d4 {[%clk
00:14:31]} {[%emt 00:00:14]} Ne4 {[%clk 00:13:13]} {[%emt 00:00:18]} 9. Nbd2
{[%clk 00:14:14]} {[%emt 00:00:23]} Bf5 {[%clk 00:12:46]} {[%emt 00:00:32]} 10.
e3 {[%clk 00:13:56]} {[%emt 00:00:23]} Qa5 {[%clk 00:12:00]} {[%emt 00:00:51]}
11. Nb1 {[%clk 00:11:38]} {[%emt 00:02:22]} Bd7 {[%clk 00:06:52]} {[%emt
00:05:13]} 12. Nh4 {[%clk 00:11:13]} {[%emt 00:00:31]} Ng5 {[%clk 00:06:44]}
{[%emt 00:00:12]} 13. f4 {[%clk 00:11:04]} {[%emt 00:00:15]} Ne6 {[%clk
00:06:17]} {[%emt 00:00:32]} 14. Bc3 {[%clk 00:11:00]} {[%emt 00:00:09]} Nb4
{[%clk 00:05:06]} {[%emt 00:01:17]} 15. a3 {[%clk 00:10:57]} {[%emt 00:00:08]}
Qb6 {[%clk 00:04:48]} {[%emt 00:00:22]} 16. axb4 {[%clk 00:10:48]} {[%emt
00:00:14]} cxd4 {[%clk 00:04:51]} {[%emt 00:00:02]} 17. exd4 {[%clk 00:10:36]}
{[%emt 00:00:17]} Nxd4 {[%clk 00:04:11]} {[%emt 00:00:45]} 18. Kh1 {[%clk
00:10:39]} {[%emt 00:00:02]} Bc6 {[%clk 00:04:02]} {[%emt 00:00:14]} 19. Nf3
{[%clk 00:10:35]} {[%emt 00:00:09]} Nxf3 {[%clk 00:03:40]} {[%emt 00:00:26]} 20.
Bxf3 {[%clk 00:10:35]} {[%emt 00:00:05]} Bxc3 {[%clk 00:03:28]} {[%emt
00:00:18]} 21. Nxc3 {[%clk 00:10:37]} {[%emt 00:00:02]} Qxb4 {[%clk 00:03:31]}
{[%emt 00:00:02]} 22. Nd5 {[%clk 00:10:37]} {[%emt 00:00:05]} 1-0

[Event "MČR v rapid šachu družstev 2019"]
[Site "Teplice, Czech Republic"]
[Date "2019.09.15"]
[Round "5.6"]
[White "Vltavsky, Vladimir"]
[Black "Studnicka, Tomas"]
[Result "1/2-1/2"]
[TimeControl "15 min. + 5s"]
[WhiteElo "2146"]
[BlackElo "2379"]

1. e4 {[%clk 00:15:08]} {[%emt 00:00:02]} c5 {[%clk 00:15:04]} {[%emt
00:00:07]} 2. Nf3 {[%clk 00:15:11]} {[%emt 00:00:02]} g6 {[%clk 00:15:05]}
{[%emt 00:00:03]} 3. c3 {[%clk 00:15:15]} {[%emt 00:00:01]} Bg7 {[%clk
00:14:53]} {[%emt 00:00:18]} 4. d4 {[%clk 00:15:12]} {[%emt 00:00:08]} cxd4
{[%clk 00:13:59]} {[%emt 00:00:59]} 5. cxd4 {[%clk 00:15:11]} {[%emt 00:00:06]}
Nf6 {[%clk 00:14:03]} {[%emt 00:00:01]} 6. Nc3 {[%clk 00:15:12]} {[%emt
00:00:04]} d5 {[%clk 00:13:57]} {[%emt 00:00:11]} 7. e5 {[%clk 00:15:10]}
{[%emt 00:00:06]} Ne4 {[%clk 00:14:01]} {[%emt 00:00:02]} 8. h3 {[%clk
00:15:06]} {[%emt 00:00:10]} Qa5 {[%clk 00:13:30]} {[%emt 00:00:36]} 9. Qb3
{[%clk 00:14:37]} {[%emt 00:00:34]} Nxc3 {[%clk 00:13:31]} {[%emt 00:00:03]} 10.
Bd2 {[%clk 00:13:17]} {[%emt 00:01:25]} O-O {[%clk 00:12:57]} {[%emt 00:00:40]}
11. Bxc3 {[%clk 00:13:01]} {[%emt 00:00:21]} Qd8 {[%clk 00:13:01]} 12. Bd3
{[%clk 00:13:01]} {[%emt 00:00:06]} b6 {[%clk 00:12:33]} {[%emt 00:00:32]} 13.
a4 {[%clk 00:12:53]} {[%emt 00:00:14]} Ba6 {[%clk 00:12:06]} {[%emt 00:00:32]}
14. Bb5 {[%clk 00:12:35]} {[%emt 00:00:23]} Bb7 {[%clk 00:09:46]} {[%emt
00:02:24]} 15. O-O {[%clk 00:12:32]} {[%emt 00:00:09]} Nc6 {[%clk 00:09:48]}
{[%emt 00:00:03]} 16. Rfe1 {[%clk 00:11:41]} {[%emt 00:00:56]} e6 {[%clk
00:09:46]} {[%emt 00:00:07]} 17. Bd2 {[%clk 00:10:49]} {[%emt 00:00:57]} Na5
{[%clk 00:08:53]} {[%emt 00:00:58]} 18. Bxa5 {[%clk 00:10:01]} {[%emt
00:00:54]} bxa5 {[%clk 00:08:56]} {[%emt 00:00:01]} 19. Rac1 {[%clk 00:09:53]}
{[%emt 00:00:14]} Qb6 {[%clk 00:08:57]} {[%emt 00:00:03]} 20. Rc3 {[%clk
00:09:43]} {[%emt 00:00:15]} Rfc8 {[%clk 00:08:26]} {[%emt 00:00:36]} 21. Rec1
{[%clk 00:08:13]} {[%emt 00:01:36]} Rxc3 {[%clk 00:08:12]} {[%emt 00:00:19]} 22.
Rxc3 {[%clk 00:08:09]} {[%emt 00:00:08]} Bf8 {[%clk 00:08:12]} {[%emt
00:00:05]} 23. Qc2 {[%clk 00:07:36]} {[%emt 00:00:39]} 1/2-1/2

[Event "MČR v rapid šachu družstev 2019"]
[Site "Teplice, Czech Republic"]
[Date "2019.09.15"]
[Round "5.7"]
[White "Sodoma, Jan"]
[Black "Marsalek, Zdenek"]
[Result "1/2-1/2"]
[TimeControl "15 min. + 5s"]
[WhiteElo "2358"]
[BlackElo "2278"]

1. d4 {[%clk 00:15:01]} {[%emt 00:00:09]} d5 {[%clk 00:15:09]} {[%emt
00:00:02]} 2. Nf3 {[%clk 00:15:03]} {[%emt 00:00:03]} Nf6 {[%clk 00:15:11]}
{[%emt 00:00:02]} 3. c4 {[%clk 00:15:02]} {[%emt 00:00:06]} c6 {[%clk
00:15:14]} {[%emt 00:00:03]} 4. e3 {[%clk 00:15:05]} Bf5 {[%clk 00:15:11]}
{[%emt 00:00:08]} 5. Nc3 {[%clk 00:15:08]} {[%emt 00:00:03]} e6 {[%clk
00:15:15]} {[%emt 00:00:02]} 6. Nh4 {[%clk 00:15:01]} {[%emt 00:00:11]} Bg4
{[%clk 00:15:17]} {[%emt 00:00:02]} 7. Qb3 {[%clk 00:15:03]} {[%emt 00:00:02]}
Qb6 {[%clk 00:15:19]} {[%emt 00:00:04]} 8. h3 {[%clk 00:15:05]} {[%emt
00:00:02]} Bh5 {[%clk 00:15:00]} {[%emt 00:00:25]} 9. g4 {[%clk 00:15:07]}
{[%emt 00:00:02]} Bg6 {[%clk 00:15:03]} {[%emt 00:00:02]} 10. Nxg6 {[%clk
00:15:10]} {[%emt 00:00:02]} hxg6 {[%clk 00:15:07]} {[%emt 00:00:02]} 11. Bg2
{[%clk 00:14:46]} {[%emt 00:00:28]} Nbd7 {[%clk 00:14:09]} {[%emt 00:01:03]} 12.
Bd2 {[%clk 00:14:46]} {[%emt 00:00:05]} Be7 {[%clk 00:14:05]} {[%emt 00:00:10]}
13. g5 {[%clk 00:14:30]} {[%emt 00:00:20]} Ng8 {[%clk 00:14:08]} {[%emt
00:00:02]} 14. h4 {[%clk 00:14:30]} {[%emt 00:00:05]} dxc4 {[%clk 00:13:50]}
{[%emt 00:00:23]} 15. Qxc4 {[%clk 00:14:29]} {[%emt 00:00:06]} Bb4 {[%clk
00:13:22]} {[%emt 00:00:33]} 16. a3 {[%clk 00:12:43]} {[%emt 00:01:52]} Bxc3
{[%clk 00:13:12]} {[%emt 00:00:14]} 17. Bxc3 {[%clk 00:12:47]} {[%emt
00:00:02]} Ne7 {[%clk 00:13:13]} {[%emt 00:00:04]} 18. e4 {[%clk 00:12:43]}
{[%emt 00:00:09]} Qb5 {[%clk 00:13:03]} {[%emt 00:00:15]} 19. Qxb5 {[%clk
00:12:07]} {[%emt 00:00:41]} cxb5 {[%clk 00:13:07]} {[%emt 00:00:01]} 20. f4
{[%clk 00:12:10]} {[%emt 00:00:02]} Nb6 {[%clk 00:12:55]} {[%emt 00:00:17]} 21.
Kf2 {[%clk 00:11:51]} {[%emt 00:00:24]} Rc8 {[%clk 00:12:48]} {[%emt 00:00:12]}
22. Kg3 {[%clk 00:10:47]} {[%emt 00:01:09]} f5 {[%clk 00:11:15]} {[%emt
00:01:38]} 23. gxf6 {[%clk 00:10:46]} {[%emt 00:00:06]} gxf6 {[%clk 00:11:18]}
{[%emt 00:00:02]} 24. d5 {[%clk 00:10:37]} {[%emt 00:00:14]} exd5 {[%clk
00:10:09]} {[%emt 00:01:15]} 25. Bxf6 {[%clk 00:10:39]} {[%emt 00:00:02]} Rh7
{[%clk 00:10:12]} {[%emt 00:00:01]} 26. Rae1 {[%clk 00:09:19]} {[%emt
00:01:25]} Rc6 {[%clk 00:07:40]} {[%emt 00:02:37]} 27. Bxe7 {[%clk 00:08:48]}
{[%emt 00:00:36]} Rxe7 {[%clk 00:07:44]} {[%emt 00:00:02]} 28. exd5 {[%clk
00:08:52]} {[%emt 00:00:01]} Rd6 {[%clk 00:07:40]} {[%emt 00:00:09]} 29. h5
{[%clk 00:06:59]} {[%emt 00:01:58]} gxh5 {[%clk 00:07:37]} {[%emt 00:00:08]} 30.
Rxe7+ {[%clk 00:07:00]} {[%emt 00:00:03]} Kxe7 {[%clk 00:07:40]} {[%emt
00:00:02]} 31. Rxh5 {[%clk 00:07:03]} {[%emt 00:00:03]} Nc4 {[%clk 00:07:22]}
{[%emt 00:00:23]} 32. Rh7+ {[%clk 00:07:04]} {[%emt 00:00:04]} Kf6 {[%clk
00:07:14]} {[%emt 00:00:13]} 33. Rxb7 {[%clk 00:07:01]} {[%emt 00:00:09]} a6
{[%clk 00:07:10]} {[%emt 00:00:09]} 34. a4 {[%clk 00:06:11]} {[%emt 00:00:54]}
Nxb2 {[%clk 00:06:38]} {[%emt 00:00:38]} 35. axb5 {[%clk 00:06:14]} {[%emt
00:00:03]} axb5 {[%clk 00:06:31]} {[%emt 00:00:12]} 36. Rxb5 {[%clk 00:06:17]}
{[%emt 00:00:02]} Na4 {[%clk 00:06:14]} {[%emt 00:00:23]} 37. Kf2 {[%clk
00:04:39]} {[%emt 00:01:42]} Ra6 {[%clk 00:05:35]} {[%emt 00:00:44]} 38. Ke3
{[%clk 00:04:24]} {[%emt 00:00:19]} Nb6 {[%clk 00:05:17]} {[%emt 00:00:23]} 39.
Kd4 {[%clk 00:03:57]} {[%emt 00:00:32]} Ra4+ {[%clk 00:04:40]} {[%emt
00:00:42]} 40. Kc5 {[%clk 00:03:25]} {[%emt 00:00:37]} Nd7+ {[%clk 00:04:39]}
{[%emt 00:00:07]} 41. Kd6 {[%clk 00:03:27]} {[%emt 00:00:03]} Nf8 {[%clk
00:04:40]} {[%emt 00:00:03]} 42. Bh3 {[%clk 00:02:25]} {[%emt 00:01:08]} Rxf4
{[%clk 00:04:32]} {[%emt 00:00:13]} 43. Rb8 {[%clk 00:02:29]} {[%emt 00:00:02]}
Ng6 {[%clk 00:04:29]} {[%emt 00:00:08]} 44. Be6 {[%clk 00:02:22]} {[%emt
00:00:11]} Ra4 {[%clk 00:04:17]} {[%emt 00:00:17]} 45. Rb7 {[%clk 00:02:16]}
{[%emt 00:00:11]} Ne5 {[%clk 00:04:02]} {[%emt 00:00:20]} 46. Kc7 {[%clk
00:02:06]} {[%emt 00:00:15]} Rc4+ {[%clk 00:03:47]} {[%emt 00:00:20]} 47. Kd8
{[%clk 00:02:04]} {[%emt 00:00:07]} Ra4 {[%clk 00:02:58]} {[%emt 00:00:54]} 48.
Rb6 {[%clk 00:01:49]} {[%emt 00:00:19]} Nc4 {[%clk 00:02:55]} {[%emt 00:00:09]}
49. Rc6 {[%clk 00:01:37]} {[%emt 00:00:17]} Ne5 {[%clk 00:02:56]} {[%emt
00:00:04]} 50. Rc1 {[%clk 00:01:08]} {[%emt 00:00:33]} Ra8+ {[%clk 00:02:47]}
{[%emt 00:00:15]} 51. Kc7 {[%clk 00:01:12]} {[%emt 00:00:02]} Ra6 {[%clk
00:02:18]} {[%emt 00:00:33]} 52. Rf1+ {[%clk 00:01:05]} {[%emt 00:00:11]} Ke7
{[%clk 00:02:18]} {[%emt 00:00:06]} 53. Re1 {[%clk 00:01:09]} {[%emt 00:00:02]}
Kf6 {[%clk 00:02:10]} {[%emt 00:00:13]} 54. Bc8 {[%clk 00:01:02]} {[%emt
00:00:11]} Ra5 {[%clk 00:01:47]} {[%emt 00:00:28]} 55. d6 {[%clk 00:00:58]}
{[%emt 00:00:08]} Rc5+ {[%clk 00:01:47]} {[%emt 00:00:05]} 56. Kb7 {[%clk
00:00:38]} {[%emt 00:00:26]} Rd5 {[%clk 00:01:34]} {[%emt 00:00:19]} 57. Rf1+
{[%clk 00:00:35]} {[%emt 00:00:08]} Kg7 {[%clk 00:01:33]} {[%emt 00:00:06]} 58.
Kc7 {[%clk 00:00:36]} {[%emt 00:00:03]} Rc5+ {[%clk 00:01:31]} {[%emt
00:00:07]} 59. Kb8 {[%clk 00:00:30]} {[%emt 00:00:11]} Nc6+ {[%clk 00:01:13]}
{[%emt 00:00:23]} 60. Kb7 {[%clk 00:00:28]} {[%emt 00:00:06]} Nd8+ {[%clk
00:01:14]} {[%emt 00:00:03]} 61. Kb8 {[%clk 00:00:28]} {[%emt 00:00:05]} Nc6+
{[%clk 00:01:18]} {[%emt 00:00:02]} 62. Ka8 {[%emt 00:00:19]} 1/2-1/2